bitfinex-derivatives/quotes_ETHF0:USTF0_20210403
["timestamp","ask_amount","ask_price","bid_price","bid_amount"]
[1617473702524,80.2392,2031.1,2029.2,2.90695]
[1617473704028,2.0,2033.0,2030.1,4.91415]
[1617473704227,60.2706,2033.2,2030.1,4.91415]
[1617473704927,90.2706,2033.2,2030.1,4.91415]
[1617473705628,15.0,2033.4,2031.1,74.3416]
[1617473705830,15.0,2033.4,2032.3,2.90695]
[1617473706032,15.0,2033.4,2032.3,1.9039]
[1617473707132,15.0,2033.4,2031.6,2.1427]
[1617473707939,15.0,2033.4,2032.3,5.28635]
[1617473710033,15.0,2033.4,2032.9,5.35435]
[1617473711937,15.0,2033.4,2033.3,2.90695]
[1617473714938,0.0001,2033.4,2033.3,2.90695]
[1617473715139,2.571,2036.0,2033.3,2.90695]
[1617473716138,2.571,2036.0,2032.9,9.53372159]
[1617473716139,2.571,2036.0,2034.2,2.90695]
[1617473716538,2.571,2036.0,2034.2,5.09835]
[1617473716939,71.965,2036.0,2034.2,5.09835]
[1617473717942,71.965,2036.0,2034.6,2.90695]
[1617473718344,2.571,2036.0,2034.6,2.90695]
[1617473718643,2.571,2036.0,2034.6,55.8972]
[1617473720044,2.90695,2034.7,2034.6,55.8972]
[1617473721551,2.90695,2034.7,2034.2,2.1914]
[1617473721848,4.64995,2034.7,2033.9,2.90695]
[1617473722047,2.90695,2034.0,2033.5,64.8333]
[1617473722247,2.90695,2034.0,2032.6,5.08579838]
[1617473722649,2.90695,2034.0,2032.5,5.086414]
[1617473723049,2.90695,2034.0,2032.4,5.08640706]
[1617473723752,2.90695,2034.0,2032.5,5.08639146]
[1617473723951,2.90695,2034.0,2033.9,2.90695]
[1617473726753,2.90695,2034.0,2033.4,1.5611]
[1617473727054,2.90695,2034.0,2033.2,58.1568]
[1617473727951,2.90695,2033.3,2033.2,61.06375]
[1617473730461,4.3341,2035.0,2033.2,61.06375]
[1617473730961,2.571,2035.0,2033.2,61.06375]
[1617473731161,2.571,2035.0,2033.2,64.58825]
[1617473731962,2.571,2035.0,2033.7,2.90695]
[1617473732562,2.571,2035.0,2033.7,4.61205]
[1617473733366,2.571,2035.0,2034.2,74.9068]
[1617473733667,2.571,2035.0,2034.2,76.5376]
[1617473734070,2.90695,2034.3,2034.2,79.44455]
[1617473735069,2.90695,2034.3,2034.2,1.6308]
[1617473735268,2.90695,2034.3,2033.0,35.08631401]
[1617473735670,2.90695,2034.3,2033.0,30.0]
[1617473736070,2.90695,2034.0,2033.8,2.90695]
[1617473736670,2.5219,2035.5,2033.8,2.90695]
[1617473736871,2.0,2035.4,2033.8,2.90695]
[1617473737072,32.0,2035.4,2033.8,2.90695]
[1617473737474,1.9622,2034.8,2033.0,70.3523]
[1617473737971,1.9622,2034.8,2033.2,2.90695]
[1617473738170,1.9622,2034.8,2033.0,70.3523]
[1617473740074,1.9622,2034.8,2033.2,2.90695]
[1617473741477,1.9622,2034.8,2032.6,5.09483342]
[1617473742077,1.9622,2034.8,2033.1,2.90695]
[1617473742480,0.2,2034.8,2033.1,4.60675]
[1617473742883,0.2,2034.8,2033.3,70.3346]
[1617473744086,0.2,2034.8,2034.0,2.90695]
[1617473744286,0.2,2034.8,2034.0,5.31055]
[1617473746087,0.2,2034.8,2034.4,2.90695]
[1617473748192,2.90695,2034.5,2034.4,2.90695]
[1617473748390,0.2,2034.8,2034.4,2.90695]
[1617473750193,3.10695,2034.8,2034.7,2.90695]
[1617473750391,3.10695,2034.8,2034.7,4.54145]
[1617473750792,0.2,2034.8,2034.7,4.54145]
[1617473756003,0.2,2034.8,2034.7,6.54145]
[1617473758503,0.2,2034.8,2034.7,36.54145]
[1617473761607,0.2,2034.8,2034.7,36.73052038]
[1617473762908,0.2,2034.8,2034.7,36.54145]
[1617473763510,0.2,2034.8,2034.7,42.76388094]
[1617473764709,0.2,2034.8,2034.7,36.54145]
[1617473765108,0.2,2034.8,2034.7,42.76394727]
[1617473766611,0.2,2034.8,2034.7,36.54145]
[1617473766911,0.2,2034.8,2034.7,42.76394087]
[1617473767911,10.2,2034.8,2034.7,42.76394087]
[1617473768111,10.2,2034.8,2034.7,36.54145]
[1617473768712,10.1031,2034.8,2034.7,42.75598511]
[1617473769012,10.1031,2034.8,2034.7,36.54145]
[1617473769913,10.1031,2034.8,2034.7,41.62625867]
[1617473770514,10.1031,2034.8,2034.7,9.62625867]
[1617473770716,10.1031,2034.8,2034.7,7.99175867]
[1617473770918,10.1031,2034.8,2034.7,2.90695]
[1617473774420,10.1031,2034.8,2034.7,4.90695]
[1617473776520,10.1031,2034.8,2034.7,9.99397112]
[1617473776722,9.1427,2034.8,2034.7,9.99397112]
[1617473777022,9.1427,2034.8,2034.7,34.90695]
[1617473777425,9.1427,2034.8,2034.7,39.99375194]
[1617473777625,9.1427,2034.8,2034.7,41.123745]
[1617473777926,7.4596,2034.8,2034.7,41.123745]
[1617473778826,7.4596,2034.8,2034.7,34.90695]
[1617473779226,7.4596,2034.8,2034.7,41.12371373]
[1617473780229,7.4596,2034.8,2034.7,34.90695]
[1617473780629,7.4596,2034.8,2034.7,41.12275168]
[1617473781230,7.4596,2034.8,2034.7,34.90695]
[1617473782431,7.4596,2034.8,2034.7,41.12260631]
[1617473782630,2.0,2037.7,2034.7,41.12260631]
[1617473782831,2.0,2037.8,2034.7,34.90695]
[1617473783031,35.098,2037.9,2034.7,34.90695]
[1617473783234,35.098,2037.9,2035.2,5.08499001]
[1617473783433,35.098,2037.9,2036.2,62.6311]
[1617473784333,35.098,2037.9,2036.3,2.90695]
[1617473785635,5.098,2037.9,2036.3,32.90695]
[1617473785835,5.098,2037.9,2036.3,35.13145]
[1617473786137,2.571,2038.0,2037.8,58.7293]
[1617473786338,2.90695,2037.9,2037.8,58.7293]
[1617473788337,2.90695,2037.9,2037.6,2.90695]
[1617473794444,30.0,2040.5,2037.9,69.3724]
[1617473794644,30.0,2040.5,2037.9,99.3724]
[1617473795246,2.0,2040.4,2038.0,5.10181579]
[1617473795650,30.0,2040.5,2038.0,5.10181579]
[1617473796148,13.8748,2040.9,2038.1,5.10156013]
[1617473796351,2.90695,2039.5,2038.9,2.90695]
[1617473796550,2.90695,2039.5,2038.9,5.41655]
[1617473797050,2.90695,2039.5,2038.9,2.5096]
[1617473797451,32.90695,2039.5,2038.2,5.10145436]
[1617473797652,32.90695,2039.5,2037.8,5.10283248]
[1617473797952,32.90695,2039.5,2037.2,9.37075803]
[1617473797953,102.40265,2039.5,2037.2,2.0]
[1617473798152,104.97365,2039.5,2037.2,2.0]
[1617473798352,72.0667,2039.5,2038.0,2.90695]
[1617473798552,2.571,2039.5,2038.0,2.90695]
[1617473799652,2.571,2039.5,2037.1,5.08259486]
[1617473799952,34.6191,2039.5,2036.9,5.08316527]
[1617473800352,34.6191,2039.5,2036.7,6.21275755]
[1617473800353,2.0,2039.4,2037.5,2.90695]
[1617473800552,34.6191,2039.5,2037.5,2.90695]
[1617473801959,4.6191,2039.5,2037.5,2.90695]
[1617473802159,2.571,2039.5,2037.5,2.90695]
[1617473802360,2.90695,2038.0,2037.9,2.90695]
[1617473802559,2.571,2039.5,2037.9,2.90695]
[1617473802861,32.571,2039.5,2036.8,35.08294613]
[1617473803065,34.7747,2039.5,2036.8,35.08294613]
[1617473803359,34.7747,2039.5,2036.8,30.0]
[1617473803360,2.0,2039.4,2036.8,30.0]
[1617473803661,32.0,2039.4,2036.8,30.0]
[1617473803860,32.0,2039.4,2036.7,62.0215]
[1617473804360,32.0,2039.4,2037.4,2.90695]
[1617473804361,2.90695,2037.7,2037.4,2.90695]
[1617473805560,2.90695,2037.7,2036.7,62.0215]
[1617473806362,1.8166,2038.0,2037.3,2.90695]
[1617473806966,2.0,2039.4,2037.3,2.90695]
[1617473807262,4.7747,2039.5,2037.3,2.90695]
[1617473807263,2.571,2039.5,2037.4,2.0]
[1617473807464,2.571,2039.5,2037.4,32.0]
[1617473808065,30.0,2041.1,2037.4,32.0]
[1617473808066,2.571,2041.0,2037.4,32.0]
[1617473808364,2.571,2041.0,2037.2,1.6368]
[1617473808365,2.90695,2039.4,2038.9,2.90695]
[1617473810466,2.90695,2039.4,2039.3,2.90695]
[1617473811467,4.571,2041.0,2039.3,2.90695]
[1617473812068,0.14367226,2040.9,2039.3,2.90695]
[1617473812472,0.14367226,2040.9,2039.8,2.90695]
[1617473813371,2.571,2041.0,2039.8,2.90695]
[1617473814472,2.90695,2039.9,2039.8,2.90695]
[1617473817376,2.90695,2039.9,2039.8,34.90695]
[1617473820376,0.9855,2041.9,2039.8,34.90695]
[1617473820676,2.90695,2040.3,2039.8,34.90695]
[1617473820876,2.90695,2040.3,2040.0,61.7365]
[1617473821076,2.90695,2040.3,2040.0,63.4729]
[1617473821976,0.9855,2041.9,2040.0,63.4729]
[1617473821977,0.9855,2041.9,2040.1,2.0]
[1617473822178,0.9855,2041.9,2040.2,30.0]
[1617473822482,31.0,2042.3,2040.2,30.0]
[1617473822483,31.0,2042.3,2041.6,2.90695]
[1617473822779,31.0,2042.3,2041.6,5.17505]
[1617473824579,2.90695,2041.7,2041.6,5.17505]
[1617473825180,2.70695,2041.7,2041.6,2.90695]
[1617473825379,4.29315,2041.7,2041.1,30.0]
[1617473825681,4.29315,2041.7,2040.5,2.0]
[1617473825982,4.29315,2041.7,2040.0,30.0]
[1617473826581,1.5862,2041.7,2041.0,2.90695]
[1617473826981,31.0,2042.3,2041.4,71.3343]
[1617473827894,33.3371,2042.3,2039.7,2.0]
[1617473828084,63.3371,2042.3,2039.4,30.0]
[1617473828283,32.14357365,2042.2,2039.4,30.0]
[1617473828487,30.14357365,2042.2,2040.1,2.90695]
[1617473828685,0.14357415,2042.1,2038.1,13.8116]
[1617473828992,0.14357415,2042.1,2038.2,30.0]
[1617473829385,2.14357415,2042.1,2038.2,30.0]
[1617473829588,30.0,2042.0,2038.2,30.0]
[1617473829788,2.0,2041.9,2038.2,30.0]
[1617473829992,30.0,2041.8,2038.3,2.0]
[1617473830189,2.0,2041.7,2038.3,32.0]
[1617473830387,80.9289,2041.2,2038.3,32.0]
[1617473830687,83.1489,2041.2,2039.3,2.90695]
[1617473830888,83.1489,2041.2,2038.3,32.0]
[1617473831088,2.0,2041.1,2038.3,32.0]
[1617473831388,32.0,2041.1,2038.3,32.0]
[1617473831597,32.0,2041.1,2038.3,2.0]
[1617473831788,32.0,2041.1,2038.1,61.6758]
[1617473832289,1.12364072,2041.0,2038.1,61.6758]
[1617473832489,1.12364072,2041.0,2038.4,2.90695]
[1617473832991,0.14366241,2040.9,2038.4,2.90695]
[1617473833489,0.14366241,2040.9,2038.1,61.6758]
[1617473834690,2.90695,2038.2,2038.1,61.6758]
[1617473834989,2.90695,2038.2,2037.9,2.90695]
[1617473836090,73.5218,2040.0,2037.9,32.90695]
[1617473836289,2.44728075,2045.1,2037.9,34.60585]
[1617473836489,12.9657,2041.4,2039.7,2.90695]
[1617473836990,36.098,2042.3,2039.0,1.727]
[1617473836991,2.571,2041.0,2039.0,1.727]
[1617473837191,30.0,2042.1,2038.4,2.0]
[1617473837390,43.1833,2042.1,2038.3,30.0]
[1617473837591,30.0,2041.9,2038.1,5.06037163]
[1617473837793,2.0,2041.8,2037.7,5.05426475]
[1617473837991,30.0,2041.7,2037.7,5.05426475]
[1617473838192,2.0,2041.6,2037.5,35.05465942]
[1617473838391,30.0,2041.5,2037.5,35.05465942]
[1617473838592,2.0,2041.4,2038.9,2.90695]
[1617473838791,30.0,2041.3,2038.9,2.90695]
[1617473838991,2.0,2041.2,2038.9,2.90695]
[1617473839191,30.0,2041.1,2038.9,2.90695]
[1617473839392,2.0,2041.0,2038.9,2.90695]
[1617473839594,32.0,2041.0,2038.9,2.90695]
[1617473840594,2.90695,2039.0,2038.4,65.0667]
[1617473841797,2.90695,2039.0,2038.4,67.0667]
[1617473842704,2.90695,2039.0,2038.9,2.90695]
[1617473843400,2.90695,2039.0,2038.4,65.0667]
[1617473843801,1.5332,2040.6,2038.4,66.0605]
[1617473844005,2.0,2041.5,2038.5,30.0]
[1617473844400,11.155,2042.2,2039.4,69.0173]
[1617473844612,2.0,2041.8,2040.2,2.90695]
[1617473844800,2.0,2041.8,2040.2,5.02305]
[1617473845001,30.0,2041.7,2040.2,5.02305]
[1617473845202,30.0,2041.7,2040.2,2.1161]
[1617473845801,2.0,2041.6,2038.3,7.06086918]
[1617473846002,30.0,2041.5,2038.3,2.0]
[1617473846203,2.0,2041.4,2038.3,2.0]
[1617473846414,30.0,2041.3,2038.3,2.0]
[1617473846708,30.0,2041.1,2038.6,2.90695]
[1617473846906,2.0,2041.0,2038.6,2.90695]
[1617473847104,30.0,2040.9,2038.6,2.90695]
[1617473847404,2.0,2040.8,2038.6,2.90695]
[1617473847804,32.0,2040.8,2038.6,2.90695]
[1617473848704,2.90695,2038.7,2038.6,2.90695]
[1617473851006,2.90695,2038.7,2038.1,5.06962983]
[1617473851209,2.90695,2038.7,2037.9,5.06977828]
[1617473851708,2.90695,2038.7,2037.7,6.19639568]
[1617473851709,2.90695,2038.7,2037.7,5.07032857]
[1617473851906,2.90695,2038.7,2037.5,5.07061416]
[1617473852506,2.90695,2038.7,2037.4,5.07098711]
[1617473852709,30.0,2038.7,2037.3,5.07104855]
[1617473853109,30.0,2038.7,2037.1,61.40734823]
[1617473853110,30.0,2038.7,2037.1,60.28123087]
[1617473853408,2.323,2038.8,2037.3,5.08218005]
[1617473853811,2.323,2038.8,2037.2,5.08241185]
[1617473854009,4.323,2038.8,2037.2,5.08241185]
[1617473854307,4.323,2038.8,2037.1,55.2094]
[1617473854509,2.323,2038.8,2037.2,5.08222371]
[1617473854708,2.90695,2037.8,2037.7,2.90695]
[1617473854910,57.0581,2039.5,2037.7,2.90695]
[1617473855210,5.098,2040.1,2038.2,61.4283]
[1617473855410,5.098,2040.1,2038.2,63.7621]
[1617473856209,15.0,2038.6,2038.2,63.7621]
[1617473856510,15.0,2038.6,2038.2,5.0801231]
[1617473856710,2.90695,2038.3,2038.0,5.0803858]
[1617473857112,2.90695,2038.3,2037.6,5.08138689]
[1617473857512,2.90695,2038.3,2037.4,5.08183903]
[1617473857814,2.90695,2038.3,2037.5,0.1833361]
[1617473858215,2.90695,2038.3,2037.5,5.08183479]
[1617473858414,2.90695,2038.3,2037.6,0.1832574]
[1617473858616,2.90695,2037.7,2037.6,0.1832574]
[1617473858815,4.95605,2037.7,2037.6,0.1832574]
[1617473859215,4.95605,2037.7,2037.4,5.08205027]
[1617473859816,4.95605,2037.7,2037.3,5.08901621]
[1617473860216,4.95605,2037.7,2037.2,5.08920305]
[1617473860618,2.0491,2037.7,2037.3,2.90695]
[1617473860825,1.5875,2038.4,2037.3,7.9958381]
[1617473861021,1.5875,2038.4,2037.5,5.08868585]
[1617473861517,1.5875,2038.4,2037.6,5.0885077]
[1617473861717,15.0,2038.6,2037.6,5.0885077]
[1617473862018,15.0,2038.6,2037.8,6.97152004]
[1617473862218,15.0,2038.6,2038.0,5.08718593]
[1617473862522,15.0,2038.6,2038.3,5.08682787]
[1617473863421,15.0,2038.6,2038.2,5.08694828]
[1617473863721,15.0,2038.6,2036.0,32.29892209]
[1617473863722,15.0,2038.6,2038.1,5.0872813]
[1617473864724,15.0,2038.6,2038.4,2.90695]
[1617473866027,15.0,2038.6,2038.4,11.43892839]
[1617473866325,15.0,2038.6,2038.5,8.53191631]
[1617473866524,15.0,2038.6,2038.5,10.82881631]
[1617473866825,17.90695,2038.6,2038.5,2.2969]
[1617473867926,15.0,2038.6,2038.5,2.2969]
[1617473869828,5.79615,2038.3,2038.2,2.0]
[1617473870029,5e-05,2038.3,2038.2,2.0]
[1617473870328,5e-05,2038.3,2038.2,12.80364396]
[1617473870629,5e-05,2038.3,2038.2,2.0]
[1617473870927,5e-05,2038.3,2038.2,15.71014442]
[1617473871230,5e-05,2038.3,2038.2,4.90695]
[1617473871529,5e-05,2038.3,2038.2,2.90695]
[1617473872328,28.0,2038.6,2038.2,2.90695]
[1617473872528,28.0,2038.6,2038.3,2.0]
[1617473872731,28.0,2038.6,2038.5,2.90695]
[1617473876831,28.0,2038.6,2038.5,13.73572741]
[1617473877231,28.0,2038.6,2038.5,2.90695]
[1617473877732,28.0,2038.6,2038.4,10.82864719]
[1617473877933,28.0,2038.6,2038.2,10.82979062]
[1617473878230,28.0,2038.6,2037.0,2.29806371]
[1617473878231,28.0,2038.6,2038.5,9.690048]
[1617473878631,28.0,2038.6,2038.3,9.69100895]
[1617473878833,30.90695,2038.6,2038.3,9.69100895]
[1617473879033,30.90695,2038.6,2038.5,8.55219361]
[1617473880432,30.90695,2038.6,2037.9,9.69246977]
[1617473880633,33.03645,2038.6,2037.9,9.69246977]
[1617473880846,4.56775,2038.0,2037.8,9.69284837]
[1617473881235,4.56775,2038.0,2037.3,58.6939]
[1617473881236,4.56775,2038.0,2037.7,9.69340801]
[1617473882135,4.56775,2038.0,2037.4,9.69478044]
[1617473882334,4.56775,2038.0,2037.2,9.69576901]
[1617473882737,2.90695,2037.3,2037.1,9.69606456]
[1617473883537,2.90695,2037.3,2037.0,9.68529133]
[1617473883937,2.90695,2037.3,2036.6,10.82473737]
[1617473883938,2.90695,2037.3,2037.1,9.68508654]
[1617473884239,2.90695,2037.3,2037.2,9.68457528]
[1617473884438,2.90695,2037.3,2036.9,10.82330963]
[1617473884638,2.90695,2037.3,2037.2,66.7424]
[1617473884841,2.90695,2037.3,2037.2,72.01755]
[1617473885939,2.90695,2037.3,2037.2,12.59082422]
[1617473886140,2.90695,2037.3,2037.2,2.90695]
[1617473886640,2.90695,2037.3,2037.2,4.60235]
[1617473886843,28.0,2038.6,2037.8,2.90695]
[1617473887040,28.0,2038.6,2037.8,4.56215]
[1617473887244,28.0,2038.6,2037.9,9.68187637]
[1617473887541,28.0,2038.6,2038.2,9.68071797]
[1617473888244,28.0,2038.6,2038.4,9.6764698]
[1617473888443,28.0,2038.6,2038.4,12.0104698]
[1617473888847,28.0,2038.6,2038.5,2.90695]
[1617473889847,28.0,2038.6,2038.5,12.5831251]
[1617473890248,28.0,2038.6,2038.4,12.01028799]
[1617473890648,28.0,2038.6,2038.4,2.334]
[1617473890950,2.90695,2038.5,2038.4,2.334]
[1617473891849,2.90695,2038.5,2038.4,12.01023547]
[1617473892749,28.0,2038.6,2038.4,12.01023547]
[1617473892951,28.0,2038.6,2038.4,2.334]
[1617473893151,28.0,2038.6,2038.4,3.3192]
[1617473893555,28.0,2038.6,2038.5,40.811984]
[1617473894255,28.0,2038.6,2038.4,12.81245315]
[1617473894657,28.0,2038.6,2038.2,13.72008715]
[1617473894857,28.0,2038.6,2038.5,2.90695]
[1617473895056,28.0,2038.6,2038.5,5.38915]
[1617473897359,28.0,2038.6,2038.5,35.38915]
[1617473897760,28.0,2038.6,2038.5,46.20349996]
[1617473898459,28.0,2038.6,2038.5,35.38915]
[1617473898659,28.0,2038.6,2038.5,2.90695]
[1617473898861,30.90695,2038.6,2038.3,10.80790016]
[1617473899062,30.90695,2038.6,2038.2,10.80843389]
[1617473899460,30.90695,2038.6,2038.4,9.67170665]
[1617473899864,30.90695,2038.6,2038.2,9.67207334]
[1617473900360,28.0,2038.6,2038.2,9.67207334]
[1617473900560,28.0,2038.6,2038.1,32.90695]
[1617473900561,28.0,2038.6,2038.3,40.80739893]
[1617473900761,25.7397,2038.6,2038.3,43.17249893]
[1617473900962,21.5746,2038.6,2038.5,13.71316898]
[1617473901163,21.5746,2038.6,2038.5,45.71316898]
[1617473901564,10.9899,2038.6,2038.5,34.90695]
[1617473902066,2.90695,2039.3,2038.5,34.90695]
[1617473902566,2.90695,2039.3,2039.1,9.66845765]
[1617473902765,2.90695,2039.3,2039.2,2.0]
[1617473902965,2.90695,2039.3,2039.2,4.90695]
[1617473904264,2.90695,2039.3,2039.1,62.6941]
[1617473904466,2.90695,2039.3,2039.2,8.53177372]
[1617473904867,2.90695,2039.3,2039.1,62.6941]
[1617473905568,2.90695,2039.3,2039.2,2.0]
[1617473905767,2.90695,2039.3,2039.2,3.9624]
[1617473906268,2.90695,2039.3,2039.2,13.63019891]
[1617473906667,2.90695,2039.3,2039.2,3.9624]
[1617473906868,2.90695,2039.3,2039.2,6.86935]
[1617473907372,2.90695,2039.3,2039.2,16.5372026]
[1617473907672,2.90695,2039.3,2039.2,6.86935]
[1617473910275,14.2085,2041.1,2039.2,6.86935]
[1617473910681,14.2085,2041.1,2040.5,5.11264489]
[1617473910884,2.90695,2040.6,2040.5,6.92014489]
[1617473911080,2.90695,2040.6,2040.5,8.05571416]
[1617473911477,2.90695,2040.6,2040.5,1.8075]
[1617473912277,2.90695,2040.6,2040.5,9.18911008]
[1617473913178,2.90695,2040.6,2040.5,1.8075]
[1617473913378,13.8899,2041.9,2040.5,31.8075]
[1617473913578,13.8899,2041.9,2040.5,33.8075]
[1617473913984,13.8899,2041.9,2041.6,5.10769472]
[1617473914178,31.0,2042.2,2041.6,7.06279472]
[1617473914779,31.0,2042.2,2041.7,5.1095683]
[1617473915085,2.90695,2041.8,2041.7,5.1095683]
[1617473915782,2.90695,2041.8,2041.6,77.3254]
[1617473916179,2.90695,2041.8,2041.7,5.10526602]
[1617473916981,2.90695,2041.8,2041.6,83.55865344]
[1617473918283,2.90695,2041.8,2041.6,8.18835344]
[1617473918886,2.90695,2041.8,2041.7,5.09035118]
[1617473919187,2.90695,2041.8,2041.6,8.16907324]
[1617473919589,2.90695,2041.8,2041.6,1.9551]
[1617473919887,2.90695,2041.8,2041.5,2.90695]
[1617473920388,2.90695,2041.8,2041.4,72.963]
[1617473920993,2.90695,2041.5,2041.4,72.963]
[1617473921994,2.90695,2041.5,2041.2,2.90695]
[1617473924097,29.0,2042.2,2041.2,2.90695]
[1617473924297,29.0,2042.2,2041.2,4.62525]
[1617473924897,31.0,2042.2,2041.2,4.62525]
[1617473925197,30.0,2042.2,2041.6,2.90695]
[1617473925497,31.0,2042.2,2041.6,2.90695]
[1617473925697,27.0,2042.2,2041.6,2.90695]
[1617473926899,31.0,2042.2,2041.6,2.90695]
[1617473927101,23.0,2042.2,2041.9,4.56185]
[1617473927302,23.0,2042.2,2042.0,77.5845]
[1617473927505,31.0,2042.2,2042.0,77.5845]
[1617473929009,2.90695,2042.1,2042.0,77.5845]
[1617473929409,31.0,2042.2,2042.0,77.5845]
[1617473929608,29.8601,2042.2,2042.0,77.5845]
[1617473929807,29.1624,2042.2,2042.0,77.5845]
[1617473930008,24.232,2042.2,2042.0,77.5845]
[1617473930209,10.4249,2042.2,2042.1,2.0]
[1617473930408,14.1251,2043.0,2042.1,2.0]
[1617473930909,1.29015604,2043.1,2042.1,2.0]
[1617473931111,1.29015604,2043.1,2043.0,5.06335]
[1617473931310,0.33015604,2043.1,2043.0,5.06335]
[1617473931509,5.604e-05,2043.1,2043.0,7.06335]
[1617473931914,30.0,2044.2,2043.0,7.06335]
[1617473932418,43.5022,2044.9,2043.0,8.04265]
[1617473932617,13.5022,2044.9,2043.1,30.0]
[1617473932821,13.5022,2044.9,2043.2,2.0]
[1617473933021,13.5022,2044.9,2044.6,2.90695]
[1617473933220,13.5022,2044.9,2044.6,4.67885]
[1617473934220,13.5022,2044.9,2044.6,1.7719]
[1617473934420,13.5022,2044.9,2044.2,71.2028]
[1617473935222,2.90695,2044.3,2044.2,71.2028]
[1617473935420,13.5022,2044.9,2044.2,71.2028]
[1617473936121,13.5022,2044.9,2044.3,2.0]
[1617473937122,13.5022,2044.9,2044.7,2.90695]
[1617473939124,16.40915,2044.9,2044.7,2.90695]
[1617473939823,13.5022,2044.9,2044.7,2.90695]
[1617473940426,7.15,2044.9,2044.7,2.90695]
[1617473940626,13.424,2047.6,2046.1,54.9095]
[1617473941027,2.90695,2046.2,2046.1,54.9095]
[1617473941228,2.90695,2046.2,2045.4,2.90695]
[1617473941427,2.90695,2046.2,2045.6,54.9473]
[1617473943026,2.90695,2045.7,2045.6,54.9473]
[1617473943428,2.90695,2045.7,2044.1,2.127]
[1617473943628,2.90695,2045.7,2044.0,67.3593]
[1617473944934,2.90695,2045.7,2042.3,2.0]
[1617473945235,2.90695,2043.5,2041.3,2.0]
[1617473945534,2.90695,2043.5,2041.5,2.0]
[1617473945834,2.90695,2043.5,2041.6,30.0]
[1617473946034,2.90695,2043.5,2041.7,2.0]
[1617473946236,2.90695,2043.5,2041.8,30.0]
[1617473947034,2.90695,2043.5,2043.4,2.90695]
[1617473947234,2.90695,2043.5,2041.9,1.999]
[1617473947434,2.90695,2043.5,2043.0,78.7578]
[1617473948838,1.929,2044.7,2043.0,78.7578]
[1617473949040,2.90695,2044.1,2043.9,2.90695]
[1617473949337,2.90695,2044.1,2043.8,2.0614]
[1617473950238,2.90695,2044.1,2043.0,78.7578]
[1617473950438,2.90695,2044.1,2042.1,2.0]
[1617473951038,2.90695,2042.9,2042.8,2.90695]
[1617473952338,2.90695,2042.9,2042.2,70.6216]
[1617473953237,2.90695,2042.4,2042.2,73.52855]
[1617473953437,4.69525,2042.4,2042.2,73.52855]
[1617473954341,4.69525,2042.4,2042.2,2.90695]
[1617473954638,2.90695,2042.4,2042.2,2.90695]
[1617473955240,2.90695,2043.5,2042.2,4.47345]
[1617473955438,2.90695,2043.5,2042.9,64.8469]
[1617473956539,26.7711,2044.7,2042.9,64.8469]
[1617473957242,2.90695,2043.4,2043.3,2.90695]
[1617473957646,2.90695,2043.4,2042.9,62.5882]
[1617473959248,2.90695,2043.0,2041.6,2.0]
[1617473959450,4.61455,2043.0,2040.6,2.0]
[1617473959651,4.61455,2043.0,2041.5,75.2718]
[1617473961151,1.7076,2043.0,2041.9,2.90695]
[1617473961452,1.7076,2043.0,2041.5,75.2718]
[1617473962754,1.7076,2043.0,2040.3,2.0]
[1617473962958,1.7076,2043.0,2041.1,58.3727]
[1617473963155,1.7076,2043.0,2041.7,2.90695]
[1617473964054,13.6626,2043.6,2042.5,72.3562]
[1617473964856,14.6395,2043.6,2042.5,72.3562]
[1617473965058,13.6626,2043.6,2042.5,72.3562]
[1617473965258,13.6626,2043.6,2043.5,2.90695]
[1617473969069,13.6626,2043.6,2043.4,72.6038]
[1617473969567,16.1155,2043.6,2042.5,30.0]
[1617473970772,13.6626,2043.6,2042.5,30.0]
[1617473970971,13.6626,2043.6,2041.3,2.0]
[1617473971172,2.90695,2043.1,2042.8,2.90695]
[1617473971371,2.90695,2043.1,2042.8,5.15775]
[1617473971671,13.6626,2043.6,2042.8,5.15775]
[1617473972476,13.6626,2043.6,2042.9,2.0]
[1617473973178,13.6626,2043.6,2043.5,2.90695]
[1617473973778,13.6626,2043.6,2043.5,61.039]
[1617473975179,16.56955,2043.6,2043.5,61.039]
[1617473975980,16.56955,2043.6,2043.2,2.90695]
[1617473977183,2.90695,2043.3,2043.2,2.46065]
[1617473977484,2.90695,2043.3,2042.4,2.0]
[1617473978485,2.90695,2043.3,2042.2,2.0]
[1617473979285,2.3905,2043.4,2042.4,2.90695]
[1617473979988,2.3905,2043.4,2042.1,63.1857]
[1617473981389,5.00565,2042.2,2042.1,63.1857]
[1617473981690,5.00565,2042.2,2041.4,2.0]
[1617473983390,2.0987,2042.2,2041.7,2.90695]
[1617473983695,2.0987,2042.2,2041.4,2.0]
[1617473983891,2.0987,2042.2,2041.2,2.0]
[1617473984391,1.7192,2042.8,2041.2,2.0]
[1617473984691,1.7192,2042.8,2041.2,6.95842923]
[1617473985292,1.7192,2042.8,2041.8,2.90695]
[1617473985593,1.7192,2042.8,2041.2,6.95842923]
[1617473986494,56.2345,2043.2,2041.2,6.95842923]
[1617473986693,14.1624,2043.3,2041.2,6.95842923]
[1617473986896,14.1624,2043.3,2041.8,70.9828]